[Event "Live Chess"]
[Site "Chess.com"]
[Date "2024.06.02"]
[Round "-"]
[White "ShanthamGrarks"]
[Black "dmitro74"]
[Result "1-0"]
[WhiteElo "1854"]
[BlackElo "1716"]
[TimeControl "300"]
[EndTime "17:12:25 PDT"]
[Termination "ShanthamGrarks won by resignation"]

1. d4 {[%clk 0:04:55.6]} 1... d5 {[%clk 0:04:58.8]} 2. Nc3 {[%clk 0:04:49.2]}
2... Nf6 {[%clk 0:04:56.8]} 3. Bf4 {[%clk 0:04:48.3]} 3... c6 {[%clk 0:04:54.3]}
4. e3 {[%clk 0:04:43.6]} 4... e6 {[%clk 0:04:53]} 5. Bd3 {[%clk 0:04:41.8]} 5...
Bd6 {[%clk 0:04:52.2]} 6. Nf3 {[%clk 0:04:41]} 6... Bxf4 {[%clk 0:04:50.6]} 7.
exf4 {[%clk 0:04:40.7]} 7... b5 {[%clk 0:04:44.2]} 8. Ne5 {[%clk 0:04:39.8]}
8... Bb7 {[%clk 0:04:39.5]} 9. g4 {[%clk 0:04:37.2]} 9... Nbd7 {[%clk
0:04:33.6]} 10. Qf3 {[%clk 0:04:31.4]} 10... Nxe5 {[%clk 0:04:23.9]} 11. fxe5
{[%clk 0:04:30]} 11... Nd7 {[%clk 0:04:20.9]} 12. h4 {[%clk 0:04:28.4]} 12...
Qe7 {[%clk 0:04:16.2]} 13. O-O-O {[%clk 0:04:12.9]} 13... O-O-O {[%clk
0:04:14.2]} 14. Bxb5 {[%clk 0:04:09.4]} 14... cxb5 {[%clk 0:04:11.2]} 15. Nxb5
{[%clk 0:04:08.8]} 15... Kb8 {[%clk 0:04:07.4]} 16. Nd6 {[%clk 0:04:02.1]} 16...
Rhf8 {[%clk 0:04:05.3]} 17. Rd3 {[%clk 0:03:57.9]} 17... Nb6 {[%clk 0:04:02.4]}
18. Rb3 {[%clk 0:03:46.8]} 18... Rxd6 {[%clk 0:03:59.1]} 19. exd6 {[%clk
0:03:44.5]} 19... Qxd6 {[%clk 0:03:57.7]} 20. Rd1 {[%clk 0:03:36]} 20... Ka8
{[%clk 0:03:53.7]} 21. Kb1 {[%clk 0:03:30.1]} 21... Ba6 {[%clk 0:03:44.9]} 22.
Ra3 {[%clk 0:03:21.2]} 22... Bb5 {[%clk 0:03:38]} 23. Ra5 {[%clk 0:02:59.9]}
23... Qb4 {[%clk 0:03:32.4]} 24. Qa3 {[%clk 0:02:51.7]} 24... Qxa3 {[%clk
0:03:27.7]} 25. Rxa3 {[%clk 0:02:49.5]} 25... Nc4 {[%clk 0:03:23]} 26. Rf3
{[%clk 0:02:37.8]} 26... f6 {[%clk 0:03:17.2]} 27. g5 {[%clk 0:02:36.1]} 27...
Nd6 {[%clk 0:03:05.9]} 28. gxf6 {[%clk 0:02:33.3]} 28... gxf6 {[%clk 0:03:04.6]}
29. Rg1 {[%clk 0:02:30.5]} 29... Nf5 {[%clk 0:02:55.4]} 30. Rf4 {[%clk
0:02:21.9]} 30... e5 {[%clk 0:02:28.4]} 31. dxe5 {[%clk 0:02:19.1]} 31... fxe5
{[%clk 0:02:27.3]} 32. Rb4 {[%clk 0:02:18.6]} 32... a6 {[%clk 0:02:20]} 33. Rg5
{[%clk 0:02:16.5]} 33... Ka7 {[%clk 0:02:13.2]} 34. Rb3 {[%clk 0:02:10.2]} 34...
Bc4 {[%clk 0:02:07.7]} 35. Rf3 {[%clk 0:02:08.2]} 35... Re8 {[%clk 0:01:16.2]}
36. Rfxf5 {[%clk 0:01:59.3]} 36... e4 {[%clk 0:01:13.6]} 37. Re5 {[%clk
0:01:57.9]} 37... Rf8 {[%clk 0:01:10.2]} 38. Rgf5 {[%clk 0:01:55.9]} 38... Rxf5
{[%clk 0:01:02.6]} 39. Rxf5 {[%clk 0:01:53.8]} 39... d4 {[%clk 0:00:58.9]} 40.
b3 {[%clk 0:01:49.9]} 40... Be6 {[%clk 0:00:50.2]} 41. Re5 {[%clk 0:01:48]}
41... Bf7 {[%clk 0:00:27.2]} 42. Re7+ {[%clk 0:01:45.9]} 42... Kb6 {[%clk
0:00:25.6]} 43. Rxf7 {[%clk 0:01:44.9]} 43... e3 {[%clk 0:00:24.6]} 44. fxe3
{[%clk 0:01:43.7]} 44... dxe3 {[%clk 0:00:23.7]} 45. Rxh7 {[%clk 0:01:39]} 45...
Kc5 {[%clk 0:00:22.6]} 46. Re7 {[%clk 0:01:37.4]} 46... Kd4 {[%clk 0:00:21.8]}
47. h5 {[%clk 0:01:35.5]} 1-0

[Event "Live Chess"]
[Site "Chess.com"]
[Date "2024.06.02"]
[Round "-"]
[White "LanceMaster23"]
[Black "alicechristina"]
[Result "0-1"]
[WhiteElo "1827"]
[BlackElo "1934"]
[TimeControl "300"]
[EndTime "17:12:39 PDT"]
[Termination "alicechristina won by resignation"]

1. Nf3 {[%clk 0:04:57.1]} 1... d5 {[%clk 0:04:58.8]} 2. d4 {[%clk 0:04:56.2]}
2... e6 {[%clk 0:04:53.9]} 3. Bf4 {[%clk 0:04:55.1]} 3... c5 {[%clk 0:04:52.1]}
4. c3 {[%clk 0:04:53.6]} 4... Nf6 {[%clk 0:04:41.7]} 5. e3 {[%clk 0:04:52.8]}
5... Nc6 {[%clk 0:04:40.5]} 6. Nbd2 {[%clk 0:04:50.8]} 6... Qb6 {[%clk
0:04:39.5]} 7. Qb3 {[%clk 0:04:47.1]} 7... Bd7 {[%clk 0:04:36.8]} 8. Be2 {[%clk
0:04:45.5]} 8... c4 {[%clk 0:04:36]} 9. Qc2 {[%clk 0:04:44.1]} 9... Be7 {[%clk
0:04:33.8]} 10. O-O {[%clk 0:04:42.9]} 10... O-O {[%clk 0:04:32.9]} 11. Rfe1
{[%clk 0:04:42]} 11... Qd8 {[%clk 0:04:31.7]} 12. e4 {[%clk 0:04:41]} 12... dxe4
{[%clk 0:04:29.5]} 13. Nxe4 {[%clk 0:04:40.9]} 13... Nxe4 {[%clk 0:04:28.5]} 14.
Qxe4 {[%clk 0:04:40.8]} 14... b5 {[%clk 0:04:12.8]} 15. a4 {[%clk 0:04:39.4]}
15... a6 {[%clk 0:04:10.4]} 16. axb5 {[%clk 0:04:35]} 16... axb5 {[%clk
0:04:09.2]} 17. h3 {[%clk 0:03:33.1]} 17... Na5 {[%clk 0:04:05.3]} 18. Ne5
{[%clk 0:03:08.8]} 18... Bf6 {[%clk 0:03:23.5]} 19. Nxd7 {[%clk 0:02:53.1]}
19... Qxd7 {[%clk 0:03:21.9]} 20. Ra2 {[%clk 0:02:48]} 20... Nc6 {[%clk
0:03:07.6]} 21. Rea1 {[%clk 0:02:42.6]} 21... Rxa2 {[%clk 0:03:05.4]} 22. Rxa2
{[%clk 0:02:42.5]} 22... Ne7 {[%clk 0:03:01.2]} 23. Ra8 {[%clk 0:02:25]} 23...
Nd5 {[%clk 0:02:59.3]} 24. Rxf8+ {[%clk 0:01:59.7]} 24... Kxf8 {[%clk
0:02:57.5]} 25. Qxh7 {[%clk 0:01:59.4]} 25... Nxf4 {[%clk 0:02:55]} 26. Bf3
{[%clk 0:01:49.5]} 26... Ng6 {[%clk 0:02:44.4]} 27. Qh5 {[%clk 0:01:47.1]} 27...
e5 {[%clk 0:02:36.9]} 28. Bg4 {[%clk 0:01:33.4]} 28... Qd5 {[%clk 0:02:26.1]}
29. dxe5 {[%clk 0:01:29.9]} 29... Qxe5 {[%clk 0:02:18.2]} 30. Qxe5 {[%clk
0:01:15.4]} 30... Nxe5 {[%clk 0:02:16.9]} 31. Bc8 {[%clk 0:01:13]} 31... Nd3
{[%clk 0:02:14.9]} 32. Ba6 {[%clk 0:01:09]} 32... Nxb2 {[%clk 0:02:13.8]} 33.
Bxb5 {[%clk 0:01:08.7]} 33... Bxc3 {[%clk 0:02:12.9]} 34. Kf1 {[%clk 0:01:06]}
34... Ba5 {[%clk 0:02:11.5]} 35. Ke2 {[%clk 0:01:03.7]} 35... c3 {[%clk
0:02:10.7]} 0-1

[Event "Live Chess"]
[Site "Chess.com"]
[Date "2024.06.02"]
[Round "-"]
[White "Queensandpawns"]
[Black "CarmelJane"]
[Result "1-0"]
[WhiteElo "2310"]
[BlackElo "2064"]
[TimeControl "300"]
[EndTime "17:13:12 PDT"]
[Termination "Queensandpawns won by resignation"]

1. e4 {[%clk 0:04:59.8]} 1... c5 {[%clk 0:04:58]} 2. d4 {[%clk 0:04:58.5]} 2...
cxd4 {[%clk 0:04:56.4]} 3. c3 {[%clk 0:04:58.4]} 3... e6 {[%clk 0:04:55.4]} 4.
Nf3 {[%clk 0:04:57.7]} 4... Nf6 {[%clk 0:04:54.5]} 5. Bc4 {[%clk 0:04:56.8]}
5... Nxe4 {[%clk 0:04:49.2]} 6. O-O {[%clk 0:04:56]} 6... d5 {[%clk 0:04:47.7]}
7. Bb3 {[%clk 0:04:54.9]} 7... dxc3 {[%clk 0:04:45.4]} 8. Re1 {[%clk 0:04:54.4]}
8... Be7 {[%clk 0:04:42.5]} 9. Nxc3 {[%clk 0:04:50.2]} 9... Nxc3 {[%clk
0:04:40.5]} 10. bxc3 {[%clk 0:04:50.1]} 10... O-O {[%clk 0:04:39.7]} 11. Bc2
{[%clk 0:04:49.8]} 11... Nc6 {[%clk 0:04:31.9]} 12. h4 {[%clk 0:04:49.5]} 12...
Bf6 {[%clk 0:04:24.9]} 13. h5 {[%clk 0:04:40.5]} 13... h6 {[%clk 0:04:19.9]} 14.
Qd3 {[%clk 0:04:38.7]} 14... Re8 {[%clk 0:04:09.2]} 15. Qh7+ {[%clk 0:04:29.8]}
15... Kf8 {[%clk 0:04:08.5]} 16. Ba3+ {[%clk 0:04:29.7]} 1-0

[Event "Live Chess"]
[Site "Chess.com"]
[Date "2024.06.02"]
[Round "-"]
[White "KeithArkell"]
[Black "NeilDruggan73"]
[Result "1-0"]
[WhiteElo "2424"]
[BlackElo "1755"]
[TimeControl "300"]
[EndTime "17:14:01 PDT"]
[Termination "KeithArkell won by resignation"]

1. d4 {[%clk 0:04:57.5]} 1... Nf6 {[%clk 0:04:57.5]} 2. Nf3 {[%clk 0:04:56.8]}
2... g6 {[%clk 0:04:56.2]} 3. c4 {[%clk 0:04:56.2]} 3... Bg7 {[%clk 0:04:52.3]}
4. g3 {[%clk 0:04:55.1]} 4... O-O {[%clk 0:04:49.8]} 5. Bg2 {[%clk 0:04:34.2]}
5... d6 {[%clk 0:04:42.3]} 6. Nc3 {[%clk 0:04:33.4]} 6... Nc6 {[%clk 0:04:34.7]}
7. O-O {[%clk 0:04:31.5]} 7... e5 {[%clk 0:04:33.4]} 8. dxe5 {[%clk 0:04:31]}
8... Nxe5 {[%clk 0:04:28.9]} 9. b3 {[%clk 0:04:30.2]} 9... Nxf3+ {[%clk
0:04:24.7]} 10. Bxf3 {[%clk 0:04:29.3]} 10... Rb8 {[%clk 0:04:22.2]} 11. Bb2
{[%clk 0:04:28]} 11... Bg4 {[%clk 0:04:16.6]} 12. Bxg4 {[%clk 0:04:26.2]} 12...
Nxg4 {[%clk 0:04:15.4]} 13. Qd2 {[%clk 0:04:25.7]} 13... Bh6 {[%clk 0:04:12.4]}
14. e3 {[%clk 0:04:24.2]} 14... Qg5 {[%clk 0:04:04.7]} 15. h3 {[%clk 0:04:20.7]}
15... Ne5 {[%clk 0:03:57.6]} 16. Kg2 {[%clk 0:04:18.9]} 16... Qf5 {[%clk
0:03:48.3]} 17. f4 {[%clk 0:04:03.3]} 17... Nd3 {[%clk 0:03:26.4]} 18. e4 {[%clk
0:04:02.3]} 18... Nxf4+ {[%clk 0:02:56]} 19. gxf4 {[%clk 0:04:00.8]} 19... Qh5
{[%clk 0:02:49.7]} 20. Nd5 {[%clk 0:03:58]} 20... f5 {[%clk 0:02:43.4]} 21. Nf6+
{[%clk 0:03:55.9]} 21... Rxf6 {[%clk 0:02:41.4]} 22. Bxf6 {[%clk 0:03:55]} 22...
Re8 {[%clk 0:02:38.8]} 23. Qd5+ {[%clk 0:03:53.6]} 23... Kf8 {[%clk 0:02:36.1]}
24. Rae1 {[%clk 0:03:51]} 24... Rxe4 {[%clk 0:02:27.8]} 25. Rxe4 {[%clk
0:03:49.8]} 25... fxe4 {[%clk 0:02:27.2]} 26. Qxh5 {[%clk 0:03:48.3]} 26... gxh5
{[%clk 0:02:26]} 27. Re1 {[%clk 0:03:47.6]} 27... Kf7 {[%clk 0:02:23.6]} 28. Bg5
{[%clk 0:03:45.8]} 28... Bxg5 {[%clk 0:02:20.3]} 29. fxg5 {[%clk 0:03:44.4]}
29... Kg6 {[%clk 0:02:15.2]} 30. Rxe4 {[%clk 0:03:43.1]} 1-0

[Event "Live Chess"]
[Site "Chess.com"]
[Date "2024.06.02"]
[Round "-"]
[White "stevochess11"]
[Black "NAZRIZ1977"]
[Result "0-1"]
[WhiteElo "1684"]
[BlackElo "2142"]
[TimeControl "300"]
[EndTime "17:14:03 PDT"]
[Termination "NAZRIZ1977 won by resignation"]

1. d4 {[%clk 0:04:58.2]} 1... Nf6 {[%clk 0:04:58]} 2. Nf3 {[%clk 0:04:56.9]}
2... g6 {[%clk 0:04:56.8]} 3. Nc3 {[%clk 0:04:55.8]} 3... d5 {[%clk 0:04:55.4]}
4. Bf4 {[%clk 0:04:54.7]} 4... Bg7 {[%clk 0:04:54.4]} 5. e3 {[%clk 0:04:53.6]}
5... O-O {[%clk 0:04:53.3]} 6. Be2 {[%clk 0:04:52.7]} 6... c5 {[%clk 0:04:52.6]}
7. Ne5 {[%clk 0:04:51.9]} 7... Nc6 {[%clk 0:04:50.8]} 8. O-O {[%clk 0:04:49.5]}
8... Nd7 {[%clk 0:04:49.2]} 9. Nxc6 {[%clk 0:04:44.8]} 9... bxc6 {[%clk
0:04:48.3]} 10. Qd2 {[%clk 0:04:38.1]} 10... e5 {[%clk 0:04:33.6]} 11. dxe5
{[%clk 0:04:36.9]} 11... Nxe5 {[%clk 0:04:32.8]} 12. Na4 {[%clk 0:04:26.3]}
12... c4 {[%clk 0:04:29.1]} 13. e4 {[%clk 0:04:19]} 13... dxe4 {[%clk
0:04:23.3]} 14. Bxc4 {[%clk 0:04:17.2]} 14... Qxd2 {[%clk 0:04:19.6]} 15. Bxd2
{[%clk 0:04:17.1]} 15... Nxc4 {[%clk 0:04:19.1]} 16. Bf4 {[%clk 0:04:11.4]}
16... Bf5 {[%clk 0:04:06.4]} 17. Nc5 {[%clk 0:04:09]} 17... Nxb2 {[%clk
0:04:03.3]} 18. Rab1 {[%clk 0:04:08.2]} 18... a5 {[%clk 0:04:00]} 19. h3 {[%clk
0:04:02.1]} 19... h5 {[%clk 0:03:58.6]} 20. Bd6 {[%clk 0:03:57.1]} 20... Rfd8
{[%clk 0:03:56]} 21. Bc7 {[%clk 0:03:55.9]} 21... Rd2 {[%clk 0:03:53.8]} 22. Nd7
{[%clk 0:03:50.4]} 22... Bxd7 {[%clk 0:03:51]} 0-1

[Event "Live Chess"]
[Site "Chess.com"]
[Date "2024.06.02"]
[Round "-"]
[White "RichardABates"]
[Black "Dhaydon19"]
[Result "0-1"]
[WhiteElo "2320"]
[BlackElo "2680"]
[TimeControl "300"]
[EndTime "17:14:28 PDT"]
[Termination "Dhaydon19 won by checkmate"]

1. d4 {[%clk 0:04:57.3]} 1... d5 {[%clk 0:04:59]} 2. c4 {[%clk 0:04:55.6]} 2...
e6 {[%clk 0:04:57.4]} 3. Nf3 {[%clk 0:04:53.7]} 3... Nf6 {[%clk 0:04:55.6]} 4.
g3 {[%clk 0:04:51.6]} 4... Be7 {[%clk 0:04:54.6]} 5. Bg2 {[%clk 0:04:50]} 5...
O-O {[%clk 0:04:54.3]} 6. O-O {[%clk 0:04:48.3]} 6... c6 {[%clk 0:04:53.2]} 7.
Qc2 {[%clk 0:04:46.8]} 7... Nbd7 {[%clk 0:04:52.9]} 8. Nbd2 {[%clk 0:04:45]}
8... b6 {[%clk 0:04:52.1]} 9. Rd1 {[%clk 0:04:41.7]} 9... Ba6 {[%clk 0:04:50.5]}
10. b3 {[%clk 0:04:39.6]} 10... Rc8 {[%clk 0:04:48.6]} 11. Bb2 {[%clk
0:04:35.6]} 11... c5 {[%clk 0:04:47.3]} 12. e4 {[%clk 0:04:29.1]} 12... cxd4
{[%clk 0:04:44]} 13. exd5 {[%clk 0:04:18.7]} 13... Nxd5 {[%clk 0:04:30.1]} 14.
Nxd4 {[%clk 0:04:13.7]} 14... b5 {[%clk 0:04:23.7]} 15. Nf5 {[%clk 0:03:59.4]}
15... Bf6 {[%clk 0:04:17.8]} 16. Bxf6 {[%clk 0:03:30.8]} 16... Qxf6 {[%clk
0:04:10.4]} 17. Nd6 {[%clk 0:03:27.8]} 17... Rc6 {[%clk 0:04:02]} 18. N2e4
{[%clk 0:03:22.4]} 18... Qe7 {[%clk 0:04:00.4]} 19. Qe2 {[%clk 0:02:52.6]} 19...
bxc4 {[%clk 0:03:53]} 20. bxc4 {[%clk 0:02:50.6]} 20... Rxd6 {[%clk 0:03:43]}
21. Nxd6 {[%clk 0:02:47.9]} 21... Nc3 {[%clk 0:03:42.2]} 22. Qe3 {[%clk
0:02:40.7]} 22... Nxd1 {[%clk 0:03:40.1]} 23. Rxd1 {[%clk 0:02:39.3]} 23... Nf6
{[%clk 0:03:29.2]} 24. c5 {[%clk 0:02:31.6]} 24... Qc7 {[%clk 0:03:25.6]} 25. c6
{[%clk 0:02:24.3]} 25... Rd8 {[%clk 0:03:21]} 26. Qc5 {[%clk 0:02:05.8]} 26...
Ne8 {[%clk 0:03:15.3]} 27. Qa3 {[%clk 0:01:56]} 27... Bc8 {[%clk 0:03:09.7]} 28.
Nxe8 {[%clk 0:01:14.7]} 28... Rxd1+ {[%clk 0:03:02.5]} 29. Bf1 {[%clk
0:01:12.5]} 29... Qxc6 {[%clk 0:02:59.7]} 30. Qa6 {[%clk 0:00:08]} 30... Bxa6
{[%clk 0:02:56.7]} 31. Nd6 {[%clk 0:00:06.4]} 31... Rxf1# {[%clk 0:02:55.7]} 0-1

[Event "Live Chess"]
[Site "Chess.com"]
[Date "2024.06.02"]
[Round "-"]
[White "toog"]
[Black "WelshTiger"]
[Result "0-1"]
[WhiteElo "2585"]
[BlackElo "2470"]
[TimeControl "300"]
[EndTime "17:14:40 PDT"]
[Termination "WelshTiger won by checkmate"]

1. b3 {[%clk 0:04:55.1]} 1... a6 {[%clk 0:04:56.1]} 2. Bb2 {[%clk 0:04:55]} 2...
Nc6 {[%clk 0:04:54.7]} 3. e4 {[%clk 0:04:53.9]} 3... e5 {[%clk 0:04:53.4]} 4.
Nf3 {[%clk 0:04:52.4]} 4... d6 {[%clk 0:04:50.6]} 5. Nc3 {[%clk 0:04:48.8]} 5...
Nf6 {[%clk 0:04:48.2]} 6. d4 {[%clk 0:04:47.1]} 6... exd4 {[%clk 0:04:46]} 7.
Nxd4 {[%clk 0:04:47]} 7... Bd7 {[%clk 0:04:39.3]} 8. Be2 {[%clk 0:04:44.6]} 8...
g6 {[%clk 0:04:20.3]} 9. O-O {[%clk 0:04:39.2]} 9... Bg7 {[%clk 0:04:19.2]} 10.
Nxc6 {[%clk 0:04:36.8]} 10... bxc6 {[%clk 0:04:18.3]} 11. Re1 {[%clk 0:04:31.4]}
11... O-O {[%clk 0:04:17]} 12. Bf1 {[%clk 0:04:29.8]} 12... Re8 {[%clk
0:04:15.7]} 13. Qd3 {[%clk 0:04:21.2]} 13... a5 {[%clk 0:04:14.3]} 14. Rad1
{[%clk 0:04:18.7]} 14... Qb8 {[%clk 0:04:10.6]} 15. Na4 {[%clk 0:04:14.7]} 15...
c5 {[%clk 0:04:03.1]} 16. Nc3 {[%clk 0:04:11]} 16... a4 {[%clk 0:04:01.4]} 17.
Qf3 {[%clk 0:04:01.8]} 17... axb3 {[%clk 0:03:58.4]} 18. axb3 {[%clk 0:04:01.7]}
18... Bc6 {[%clk 0:03:52]} 19. Nd5 {[%clk 0:03:56.6]} 19... Nxd5 {[%clk
0:03:50.2]} 20. Bxg7 {[%clk 0:03:55.3]} 20... Kxg7 {[%clk 0:03:49.1]} 21. exd5
{[%clk 0:03:54.6]} 21... Bd7 {[%clk 0:03:47.7]} 22. Qc3+ {[%clk 0:03:52.7]}
22... Kg8 {[%clk 0:03:46.6]} 23. Qf6 {[%clk 0:03:50.4]} 23... Qb4 {[%clk
0:03:42.9]} 24. Re7 {[%clk 0:03:39.2]} 24... Rxe7 {[%clk 0:03:34.4]} 25. Qxe7
{[%clk 0:03:39.1]} 25... Bf5 {[%clk 0:03:31.4]} 26. Qe2 {[%clk 0:03:08.5]} 26...
Ra2 {[%clk 0:03:25.3]} 27. Rd2 {[%clk 0:02:57.6]} 27... Qc3 {[%clk 0:03:22.9]}
28. h3 {[%clk 0:02:53.1]} 28... Rxc2 {[%clk 0:03:20.7]} 29. Rxc2 {[%clk
0:02:51.5]} 29... Qxc2 {[%clk 0:03:20]} 30. Qe8+ {[%clk 0:02:49.5]} 30... Kg7
{[%clk 0:03:18.7]} 31. Bc4 {[%clk 0:02:42]} 31... Bd3 {[%clk 0:03:07.4]} 32. Qb5
{[%clk 0:02:38.2]} 32... Qc1+ {[%clk 0:03:01.1]} 33. Kh2 {[%clk 0:02:36.3]}
33... Qf4+ {[%clk 0:03:00.7]} 34. Kg1 {[%clk 0:02:35.5]} 34... Be4 {[%clk
0:02:45.1]} 35. Qd7 {[%clk 0:02:29.7]} 35... Qe5 {[%clk 0:02:33]} 36. Qxc7
{[%clk 0:02:19.1]} 36... Bxd5 {[%clk 0:02:30.8]} 37. Bxd5 {[%clk 0:02:13]} 37...
Qxd5 {[%clk 0:02:29.6]} 38. Qb8 {[%clk 0:02:12.9]} 38... Qd4 {[%clk 0:02:26.5]}
39. Qb5 {[%clk 0:02:10.7]} 39... d5 {[%clk 0:02:25.4]} 40. Qe2 {[%clk
0:02:09.3]} 40... c4 {[%clk 0:02:24.2]} 41. bxc4 {[%clk 0:02:07.9]} 41... dxc4
{[%clk 0:02:23.6]} 42. Kh2 {[%clk 0:02:06.2]} 42... c3 {[%clk 0:02:22.9]} 43. f3
{[%clk 0:02:01.3]} 43... h5 {[%clk 0:02:21]} 44. Kh1 {[%clk 0:01:56.2]} 44... h4
{[%clk 0:02:20]} 45. Kh2 {[%clk 0:01:54.3]} 45... Qf4+ {[%clk 0:02:15]} 46. Kh1
{[%clk 0:01:52.1]} 46... Qf5 {[%clk 0:02:03.1]} 47. Qc4 {[%clk 0:01:46.5]} 47...
c2 {[%clk 0:01:59.4]} 48. Qc3+ {[%clk 0:01:45.2]} 48... Kh7 {[%clk 0:01:56.9]}
49. Kg1 {[%clk 0:01:40.8]} 49... g5 {[%clk 0:01:38.1]} 50. Qc4 {[%clk
0:01:35.8]} 50... Kg6 {[%clk 0:01:28.1]} 51. Qc6+ {[%clk 0:01:33.3]} 51... f6
{[%clk 0:01:26.8]} 52. Qc4 {[%clk 0:01:31.2]} 52... Kh6 {[%clk 0:01:03.9]} 53.
Qc3 {[%clk 0:01:25.8]} 53... Qg6 {[%clk 0:00:59.9]} 54. Qc6 {[%clk 0:01:13.6]}
54... Kg7 {[%clk 0:00:48.3]} 55. Qc7+ {[%clk 0:01:12.1]} 55... Kf8 {[%clk
0:00:45.8]} 56. Qc3 {[%clk 0:01:06.7]} 56... Qf5 {[%clk 0:00:43.4]} 57. Kh1
{[%clk 0:00:53.2]} 57... Ke7 {[%clk 0:00:42.7]} 58. Kg1 {[%clk 0:00:52]} 58...
Kd6 {[%clk 0:00:41.1]} 59. Kh1 {[%clk 0:00:49.5]} 59... Kd5 {[%clk 0:00:38.1]}
60. Kg1 {[%clk 0:00:43.7]} 60... Qe5 {[%clk 0:00:29]} 61. Qxc2 {[%clk
0:00:40.8]} 61... Qd4+ {[%clk 0:00:28.4]} 62. Kh1 {[%clk 0:00:36.6]} 62... Ke5
{[%clk 0:00:28.3]} 63. Qg6 {[%clk 0:00:34.1]} 63... Kf4 {[%clk 0:00:27.3]} 64.
Qb1 {[%clk 0:00:26]} 64... Kg3 {[%clk 0:00:25.2]} 65. Qb8+ {[%clk 0:00:18.8]}
65... Kf2 {[%clk 0:00:20.3]} 66. Kh2 {[%clk 0:00:15.7]} 66... f5 {[%clk
0:00:17.1]} 67. Qc7 {[%clk 0:00:14.5]} 67... f4 {[%clk 0:00:15.8]} 68. Qc2+
{[%clk 0:00:13.3]} 68... Ke3 {[%clk 0:00:14]} 69. Qc1+ {[%clk 0:00:12.4]} 69...
Qd2 {[%clk 0:00:12.9]} 70. Qc5+ {[%clk 0:00:11.5]} 70... Ke2 {[%clk 0:00:11.8]}
71. Qxg5 {[%clk 0:00:10.1]} 71... Kf1 {[%clk 0:00:10.6]} 72. Qg4 {[%clk
0:00:09.3]} 72... Qf2 {[%clk 0:00:09.4]} 73. Qxf4 {[%clk 0:00:05.9]} 73... Qxg2#
{[%clk 0:00:08]} 0-1

[Event "Live Chess"]
[Site "Chess.com"]
[Date "2024.06.02"]
[Round "-"]
[White "Frankie_Badacsonyi"]
[Black "RockTroll"]
[Result "0-1"]
[WhiteElo "2408"]
[BlackElo "2210"]
[TimeControl "300"]
[EndTime "17:15:13 PDT"]
[Termination "RockTroll won on time"]

1. Nf3 {[%clk 0:04:55.6]} 1... Nf6 {[%clk 0:04:58.3]} 2. g3 {[%clk 0:04:36.7]}
2... g6 {[%clk 0:04:56.7]} 3. Bg2 {[%clk 0:04:29.3]} 3... Bg7 {[%clk 0:04:55.6]}
4. O-O {[%clk 0:04:24]} 4... O-O {[%clk 0:04:54.8]} 5. b3 {[%clk 0:04:23.2]}
5... d6 {[%clk 0:04:53.3]} 6. Bb2 {[%clk 0:04:22.1]} 6... b5 {[%clk 0:04:45]} 7.
d4 {[%clk 0:04:19.5]} 7... Bb7 {[%clk 0:04:43.6]} 8. Nbd2 {[%clk 0:04:18.3]}
8... Nbd7 {[%clk 0:04:41]} 9. c4 {[%clk 0:04:17.6]} 9... bxc4 {[%clk 0:04:37]}
10. Nxc4 {[%clk 0:04:17.5]} 10... c5 {[%clk 0:04:34.6]} 11. e3 {[%clk
0:04:15.2]} 11... cxd4 {[%clk 0:04:32.2]} 12. Nxd4 {[%clk 0:04:15.1]} 12... Bxg2
{[%clk 0:04:30.6]} 13. Kxg2 {[%clk 0:04:15]} 13... Nc5 {[%clk 0:04:01.3]} 14.
Rc1 {[%clk 0:04:11.6]} 14... a5 {[%clk 0:03:55.2]} 15. Nf3 {[%clk 0:04:04.7]}
15... Qb8 {[%clk 0:03:44.5]} 16. Bd4 {[%clk 0:03:43.9]} 16... Rc8 {[%clk
0:03:31.1]} 17. Rb1 {[%clk 0:03:28.1]} 17... Qb7 {[%clk 0:03:27.9]} 18. Kg1
{[%clk 0:03:23.9]} 18... Ne6 {[%clk 0:03:14.3]} 19. Ba1 {[%clk 0:03:14]} 19...
Ne4 {[%clk 0:03:13.4]} 20. Bxg7 {[%clk 0:03:11.9]} 20... Kxg7 {[%clk 0:03:13.3]}
21. Nd4 {[%clk 0:02:45.5]} 21... N6g5 {[%clk 0:03:06]} 22. h4 {[%clk 0:02:02.2]}
22... Nh3+ {[%clk 0:02:52.5]} 23. Kh2 {[%clk 0:01:53.8]} 23... Nhxf2 {[%clk
0:02:51.5]} 24. Qf3 {[%clk 0:01:42.7]} 24... Nd3 {[%clk 0:02:08]} 25. Qxf7+
{[%clk 0:01:31.9]} 25... Kh8 {[%clk 0:02:07.3]} 26. Ne6 {[%clk 0:01:09.4]} 26...
Rg8 {[%clk 0:02:06.1]} 27. Qf3 {[%clk 0:00:58.6]} 27... d5 {[%clk 0:01:39.3]}
28. Nb2 {[%clk 0:00:46.8]} 28... Ne5 {[%clk 0:01:37.8]} 29. Qf4 {[%clk
0:00:44.3]} 29... Nc6 {[%clk 0:01:27]} 30. Ng5 {[%clk 0:00:43.2]} 30... Nxg5
{[%clk 0:01:24.2]} 31. Qxg5 {[%clk 0:00:41.1]} 31... Qd7 {[%clk 0:01:15.7]} 32.
Nd3 {[%clk 0:00:39]} 32... Rgf8 {[%clk 0:01:07.8]} 33. Ne5 {[%clk 0:00:37.7]}
33... Nxe5 {[%clk 0:01:06.3]} 34. Qxe5+ {[%clk 0:00:37.6]} 34... Kg8 {[%clk
0:01:05]} 35. Rbd1 {[%clk 0:00:32.9]} 35... e6 {[%clk 0:01:02]} 36. e4 {[%clk
0:00:31.6]} 36... Rxf1 {[%clk 0:00:59]} 37. Rxf1 {[%clk 0:00:31.5]} 37... dxe4
{[%clk 0:00:57]} 38. Qxe4 {[%clk 0:00:31.4]} 38... Qd2+ {[%clk 0:00:55.6]} 39.
Kh3 {[%clk 0:00:29.7]} 39... Re8 {[%clk 0:00:53.4]} 40. Qf3 {[%clk 0:00:28.3]}
40... Qd7 {[%clk 0:00:51.3]} 41. Rf2 {[%clk 0:00:25.8]} 41... e5+ {[%clk
0:00:49.8]} 42. Kg2 {[%clk 0:00:24.3]} 42... e4 {[%clk 0:00:49.4]} 43. Qe3
{[%clk 0:00:23.7]} 43... Qd3 {[%clk 0:00:46]} 44. Re2 {[%clk 0:00:21.2]} 44...
Qd5 {[%clk 0:00:41.6]} 45. Kh2 {[%clk 0:00:19.8]} 45... Qe5 {[%clk 0:00:40.5]}
46. Rd2 {[%clk 0:00:18.6]} 46... Qf5 {[%clk 0:00:39.3]} 47. Re2 {[%clk
0:00:17.1]} 47... Kg7 {[%clk 0:00:37.7]} 48. Rf2 {[%clk 0:00:16.4]} 48... Qe6
{[%clk 0:00:35.9]} 49. Qf4 {[%clk 0:00:14.5]} 49... e3 {[%clk 0:00:34.5]} 50.
Re2 {[%clk 0:00:13.9]} 50... h6 {[%clk 0:00:32.3]} 51. Kg2 {[%clk 0:00:13]}
51... Re7 {[%clk 0:00:31.4]} 52. Qf3 {[%clk 0:00:12.4]} 52... Qe5 {[%clk
0:00:29.2]} 53. Kg1 {[%clk 0:00:10.4]} 53... Qa1+ {[%clk 0:00:27.9]} 54. Kg2
{[%clk 0:00:09.8]} 54... Qd4 {[%clk 0:00:27.5]} 55. Kg1 {[%clk 0:00:09.3]} 55...
a4 {[%clk 0:00:26.4]} 56. Kg2 {[%clk 0:00:08.7]} 56... a3 {[%clk 0:00:25.8]} 57.
Kh2 {[%clk 0:00:07.7]} 57... h5 {[%clk 0:00:23.1]} 58. Kg2 {[%clk 0:00:07.1]}
58... Qg4 {[%clk 0:00:22]} 59. Re1 {[%clk 0:00:04.5]} 59... Qxf3+ {[%clk
0:00:20.7]} 60. Kxf3 {[%clk 0:00:04.4]} 60... Rc7 {[%clk 0:00:19.9]} 61. Rxe3
{[%clk 0:00:03.7]} 61... Rc2 {[%clk 0:00:19.5]} 62. Re2 {[%clk 0:00:03.6]} 62...
Rb2 {[%clk 0:00:18]} 63. Kf2 {[%clk 0:00:03.5]} 63... Kf6 {[%clk 0:00:16.8]} 64.
Kf3 {[%clk 0:00:03.1]} 64... Kf5 {[%clk 0:00:16.3]} 65. Kf2 {[%clk 0:00:02.2]}
65... g5 {[%clk 0:00:15.9]} 66. hxg5 {[%clk 0:00:01.3]} 66... Kxg5 {[%clk
0:00:15]} 67. Kf3 {[%clk 0:00:01.2]} 67... Kf5 {[%clk 0:00:14.2]} 68. Re3 {[%clk
0:00:00.6]} 68... Rxa2 {[%clk 0:00:12.8]} 69. b4 {[%clk 0:00:00.1]} 69... Rb2
{[%clk 0:00:11.9]} 0-1